Cogmind - Beta 16 *** ADVENTURER MODE // 2025.12.03 @ 22:12:55 Player: erkyp3rky Result: Self-destructed Performance ------------- Evolutions (2) 1000 Regions Visited (4) 800 Robots Destroyed (74) 370 Value Destroyed (1458) 1458 Prototype IDs (9) 180 Alien Tech Used (0) 0 Bonus (0) 0 TOTAL SCORE: 3808 Bonus ------- None Cogmind --------- Core Integrity 379/550 Matter 235/300 Energy 27/280 System Corruption 0% Temperature Cool (18) Movement Flying (96) Ox1 Location -8/Storage Parts ------- > --- POWER (1) -------- Heavy Ion Engine > --- PROPULSION (4) --- Improved VTOL Module Improved VTOL Module Improved VTOL Module Improved VTOL Module > --- UTILITY (4) ------ Medium Storage Unit Weight Redist. System Machine Analyzer Hacking Suite > --- WEAPON (2) ------- Advanced EMP Blaster Scythe > --- INVENTORY (10) --- Ion Engine Improved VTOL Module Large Matter Pod (150) Improved Utility Shielding Hacking Suite Heavy Laser Heavy Laser Rocket Launcher Datajack Peak State ------------ > --- POWER ------------ Heavy Ion Engine > --- PROPULSION ------- Improved VTOL Module Improved VTOL Module Improved VTOL Module Improved VTOL Module > --- UTILITY ---------- Medium Storage Unit Weight Redist. System Machine Analyzer Hacking Suite > --- WEAPON ----------- Improved Lightning Gun Scythe > --- INVENTORY -------- Improved VTOL Module Large Matter Pod Improved Utility Shielding Hacking Suite Heavy Laser Heavy Laser Advanced EMP Blaster Advanced EMP Blaster Rocket Launcher Datajack [Rating: 40] Favorites ----------- Power Ion Engine Engine Ion Engine Power Core Light Nuclear Core Propulsion Light Treads Treads Light Treads Flight Unit Improved VTOL Module Utility Medium Storage Unit Device Seismic Detector Storage Medium Storage Unit Processor Machine Analyzer Hackware Hacking Suite Protection Light Armor Plating Weapon Light Assault Rifle Energy Gun Heavy Laser Energy Cannon Advanced Beam Cannon Ballistic Gun Light Assault Rifle Launcher Advanced EMP Blaster Slashing Weapon Scythe Build | -11 -10 -9 -8 -8 ------- Run | Yrd Mat Mat Mat Sto Slots Evolved 4 | . . 2 2 . Power . | . . . . . Propulsion 2 | . . . 2 . Utility 2 | . . 2 . . Weapon . | . . . . . Parts Attached 45 | 7 2 14 15 7 Power 5 | 1 . 2 1 1 Engine 4 | 1 . 2 . 1 Core 1 | . . . 1 . Reactor . | . . . . . Propulsion 12 | 2 . 2 8 . Treads 7 | 2 . 2 3 . Leg . | . . . . . Wheel . | . . . . . Hover . | . . . . . Flight 5 | . . . 5 . Utility 12 | 2 1 5 3 1 Device 5 | 1 . 1 3 . Storage 2 | 1 1 . . . Processor 1 | . . 1 . . Hackware 1 | . . . . 1 Protection 3 | . . 3 . . Artifact . | . . . . . Weapon 16 | 2 1 5 3 5 Energy Gun 7 | . . 2 2 3 Energy Cannon 1 | . . . . 1 Ballistic Gun 5 | 2 1 2 . . Ballistic Cannon . | . . . . . Launcher 2 | . . 1 . 1 Special Weapon . | . . . . . Impact Weapon . | . . . . . Slashing Weapon 1 | . . . 1 . Piercing Weapon . | . . . . . Special Melee Weapon . | . . . . . Unidentified Prototypes 9 | . . 1 2 6 Parts Lost 3 | . . 1 1 1 Power . | . . . . . Propulsion . | . . . . . Utility 2 | . . 1 1 . Weapon 1 | . . . . 1 Highest Loss Streak 1 | . . 1 1 1 To Critical Strikes . | . . . . . Average Backups 2 | . . 2 2 8 Power . | . . . . . Propulsion . | . . . . 1 Utility 1 | . . 1 1 2 Weapon . | . . . 1 3 Tool/Special . | . . . . . Unused Backups 7 | . . . . 7 Power 1 | . . . . 1 Propulsion 1 | . . . . 1 Utility 3 | . . . . 3 Weapon 1 | . . . . 1 Tool/Special 1 | . . . . 1 Average Slot Usage (%) 96 | . 100 94 93 100 Engine 10 | . 14 11 3 4 Core 1 | . . . 5 4 Treads 20 | . 28 22 17 . Flight 6 | . . . 13 36 Device 11 | . 14 11 11 10 Storage 11 | . 14 11 9 9 Processor 4 | . . 5 9 9 Protection 5 | . . 10 6 . Energy Gun 7 | . . 9 16 8 Ballistic Gun 13 | . 28 12 . . Slashing Weapon 1 | . . . 1 9 Peak Build Rating 40 | 7 7 15 35 40 Average Rating 15 | 5 7 12 26 37 On Entrance 12 | . 7 7 15 34 Avg Prop Armor Cover (%) . | . . . . . Naked Turns . | . . . . . Heaviest Build 29 | 13 19 27 29 25 Greatest Support 80 | 40 40 40 80 26 Greatest Overweight (x) 2 | . . . 2 . Average Overweight (x) . | . . . . . Largest Inventory Capacity 10 | 8 10 10 10 10 Average Capacity 9 | 7 8 10 10 10 Most Carried 10 | . 2 3 5 10 Average Carried 2 | . . 2 2 8 Final Capacity 10 | 8 10 10 10 10 Final Carried 9 | . 2 2 5 9 Class Distribution -------------------- 45% | Scavenger-Mutant 39% | Mutant 8% | Scavenger-Sprinter 5% | Hacker-Sprinter Dominant Class ---------------- Mutant | -10/Materials Scavenger-Mutant | -9/Materials Scavenger-Mutant | -8/Materials Hacker-Sprinter | -8/Storage Resources | -11 -10 -9 -8 -8 ----------- Run | Yrd Mat Mat Mat Sto Matter Collected 1309 | 226 273 545 175 90 Remotely . | . . . . . Salvage Created 2320 | 22 168 1106 403 621 Parts 159 | 3 21 58 27 50 Haulers Intercepted 8 | . 1 2 3 2 Recyclers Shooed 3 | 1 . . . 2 Parts Field Recycled . | . . . . . Retrieved Matter . | . . . . . Parts Self-Destructed . | . . . . . Prevented . | . . . . . Parts Restored . | . . . . . Kills | -11 -10 -9 -8 -8 ------- Run | Yrd Mat Mat Mat Sto Combat Hostiles Destroyed 45 | . 6 23 4 12 Melee 1 | . . . . 1 Guns 35 | . 6 19 4 6 AOE 7 | . . 3 . 4 Classes Destroyed 12 | 1 3 7 1 . Worker 6 | . 2 1 1 2 Builder 2 | . . . 1 1 Tunneler 3 | 1 . 2 . . Hauler 8 | . 1 2 3 2 Recycler 2 | . . 1 . 1 Mechanic 1 | . . 1 . . Operator 2 | . . 1 . 1 Watcher 5 | . . 4 . 1 Swarmer 20 | . 6 6 . 8 Grunt 13 | . . 11 2 . Duelist 2 | . . 1 1 . Sentry 10 | . . 5 1 4 Best Kill Streak 7 | 1 3 5 4 7 Combat Bots Only 5 | . 3 4 4 5 Max Kills in Single Turn 3 | 1 2 3 1 3 Gunslinging 1 | . . 1 . . Exploded 3 | . . 3 . 3 Melee 1 | . . . . 1 Uniques/NPCs Destroyed . | . . . . . Combat | -11 -10 -9 -8 -8 -------- Run | Yrd Mat Mat Mat Sto Hostile Shots Fired 243 | . 25 98 34 86 Missed 71 | . 6 14 12 39 Hits 172 | . 19 84 22 47 Melee 4 | . . 4 . . Projectile 168 | . 19 80 22 47 Critical Strikes 5 | . . 3 1 1 Damage Taken 1663 | . 174 809 245 435 Core 311 | . 22 118 68 103 Absorbed by Shields . | . . . . . Ignored by Resistances 499 | . 55 242 72 130 Core Remaining (%) 87 | 100 91 70 . . Volleys Fired 166 | 3 30 83 13 37 Largest 2 | 2 2 2 2 1 Hottest 138 | 40 40 121 138 69 Shots Fired 293 | 6 60 164 26 37 Gun 288 | 6 60 163 26 33 Cannon . | . . . . . Launcher 5 | . . 1 . 4 Special . | . . . . . Kinetic 162 | 6 60 96 . . Thermal 106 | . . 67 26 13 Explosive 1 | . . 1 . . Electromagnetic 24 | . . . . 24 Robot Hit Streak 22 | 5 18 22 7 12 Robot Miss Streak 4 | . 2 4 2 2 Penetration Max . | . . . . . Secondary Targets 2 | . . 2 . . Max Gunslinging Chain 1 | . . 1 . . Shots Hit Robots 232 | 5 46 122 21 38 Core Hits 107 | 2 16 57 12 20 Critical Kills . | . . . . . Critical Parts Destroyed 1 | . 1 . . . Critical Strikes 6 | . 1 3 1 1 Burn 4 | . . 3 1 . Destroy 1 | . 1 . . . Sever 1 | . . . . 1 Melee Attacks 27 | . . . 7 20 Impact . | . . . . . Slashing 27 | . . . 7 20 Piercing . | . . . . . Sneak Attacks 5 | . . . 2 3 Combat Hostiles . | . . . . . Follow-up Attacks . | . . . . . Damage Inflicted 4530 | 45 465 2130 527 1363 Guns 3447 | 45 465 2016 346 575 Cannons . | . . . . . Explosions 515 | . . 114 . 401 Melee 568 | . . . 181 387 Ramming . | . . . . . Kinetic 1721 | 45 465 1211 . . Thermal 1479 | . . 805 346 328 Explosive 114 | . . 114 . . Electromagnetic 648 | . . . . 648 Impact . | . . . . . Slashing 568 | . . . 181 387 Piercing . | . . . . . Highest Corruption 2 | . 2 . . . Average Corruption 2 | . 2 . . . Corruption Purged . | . . . . . Corruption Blocked . | . . . . . Overload Shots . | . . . . . Overflow Damage 67 | . . . 43 24 Projectiles . | . . . . . Explosions . | . . . . . Melee 67 | . . . 43 24 Knockbacks . | . . . . . Impact . | . . . . . Kinetic . | . . . . . Secondary . | . . . . . Self-Inflicted Damage . | . . . . . Shots . | . . . . . Rammed . | . . . . . Targets Rammed . | . . . . . Kicked . | . . . . . Crushed . | . . . . . Highest Temperature 315 | . . 315 279 198 Average Temperature 67 | . . 72 73 56 Received Heat Transfer 594 | . . 360 117 117 Siege Activations . | . . . . . Martial Activations . | . . . . . Shielding Activations . | . . . . . Robots Disrupted . | . . . . . Combat Hostiles . | . . . . . Robots Corrupted 1 | . . . . 1 Combat Hostiles 1 | . . . . 1 Parts Fried 2 | . . . . 2 Impact Corruptions . | . . . . . Robots Melted 1 | . . 1 . . Combat Hostiles 1 | . . 1 . . Parts Melted 3 | . . 3 . . Heat Transferred 3345 | . . 1998 740 607 Parts Sabotaged . | . . . . . Parts Stolen . | . . . . . Parts Stripped . | . . . . . Power Chain Reactions 3 | . . . . 3 Alert | -11 -10 -9 -8 -8 ------- Run | Yrd Mat Mat Mat Sto Maximum Alert Level 1 | . . 1 . 1 Low Security (%) 79 | 100 100 58 100 66 Level 1 20 | . . 41 . 33 Level 2 . | . . . . . Level 3 . | . . . . . Level 4 . | . . . . . Level 5 . | . . . . . High Security . | . . . . . Max Security . | . . . . . Peak Influence 325 | 5 125 313 144 325 Initial 104 | . . 45 104 34 Average 103 | . 12 161 106 156 Influence Increases 1558 | 5 207 714 162 470 Destroy 0b10 Robot/C 900 | . 120 460 80 240 Destroy 0b10 Robot/NC 140 | 5 15 55 25 40 Destroy Leader 256 | . 22 142 26 66 Successful Hack 26 | . 5 4 12 5 Disable Machine 45 | . . . . 45 Destroy Structure 26 | . . 8 4 14 Partial Spotted 15 | . . . 15 . Lose Combat Pursuer 150 | . 45 45 . 60 Influence Decreases 1354 | 5 82 549 356 362 Entered New Map 328 | . . 80 186 62 Time Decay 846 | 5 82 459 160 140 Lost Part 30 | . . 10 10 10 Purge Threat 150 | . . . . 150 Squads Dispatched 6 | . 1 4 . 1 Investigation 3 | . 1 2 . . Extermination . | . . . . . Reinforcement 3 | . . 2 . 1 Assault . | . . . . . Garrison . | . . . . . Intercept . | . . . . . Searches Triggered . | . . . . . Construction Impeded 1 | . . . . 1 Haulers Reinforced . | . . . . . Active Scanning Responses . | . . . . . Cargo Convoy Interrupts . | . . . . . Stealth | -11 -10 -9 -8 -8 --------- Run | Yrd Mat Mat Mat Sto Distress Signals 8 | . . 5 1 2 Communications Jammed . | . . . . . Distress Signals . | . . . . . Times Spotted 96 | . 16 39 16 25 Peak Tracking Total 10 | . 5 5 10 9 Tactical Retreats 6 | . 2 2 . 2 Traps | -11 -10 -9 -8 -8 ------- Run | Yrd Mat Mat Mat Sto Traps Triggered 3 | . 1 . . 2 Indirectly . | . . . . . Trap Hack Attempts . | . . . . . Triggered . | . . . . . Disarmed . | . . . . . Reprogrammed . | . . . . . Reused . | . . . . . Traps Extracted . | . . . . . Installed . | . . . . . Triggered . | . . . . . Machines | -11 -10 -9 -8 -8 ---------- Run | Yrd Mat Mat Mat Sto Machines Disabled 5 | . . . . 5 Max in Single Turn 1 | . . . . 1 Machines Repaired . | . . . . . Machines Dismantled . | . . . . . Machines Sabotaged . | . . . . . Overloaded Fab Kills . | . . . . . Hacking | -11 -10 -9 -8 -8 --------- Run | Yrd Mat Mat Mat Sto Machines Accessed 12 | . 3 3 3 3 Terminals 10 | . 3 2 2 3 Fabricators . | . . . . . Repair Stations . | . . . . . Recycling Units . | . . . . . Scanalyzers 2 | . . 1 1 . Garrison Access . | . . . . . Total Hacks 26 | . 3 12 6 5 Successful 15 | . 2 6 3 4 Failed 10 | . 1 6 2 1 Catastrophic 2 | . 1 . 1 . Database Lockouts 1 | . . . 1 . Manual 13 | . 2 5 4 2 Terminals 18 | . 3 6 4 5 Fabricators . | . . . . . Repair Stations . | . . . . . Recycling Units . | . . . . . Scanalyzers 8 | . . 6 2 . Garrison Access . | . . . . . Terminal Hacks 10 | . 2 2 2 4 Robot Analysis 4 | . 2 1 1 . Open Door 2 | . . . . 2 Branch Access Points 2 | . . 1 1 . Alert Level 1 | . . . . 1 Unreport Threat 1 | . . . . 1 Fabricator Hacks . | . . . . . Repair Station Hacks . | . . . . . Recycling Unit Hacks . | . . . . . Scanalyzer 4 | . . 3 1 . Retrieve Study 4 | . . 3 1 . Garrison Access Hacks . | . . . . . Unauthorized Hacks 1 | . . 1 . . Terminals 1 | . . 1 . . Assimilate 1 | . . 1 . . Fabricators . | . . . . . Repair Stations . | . . . . . Recycling Units . | . . . . . Scanalyzers . | . . . . . Garrison Access . | . . . . . Data Cores Recovered . | . . . . . Used . | . . . . . Hacking Detections 8 | . 1 3 2 2 Full Trace Events 3 | . . 2 1 . Feedback Events . | . . . . . Feedback Blocked . | . . . . . Robot Schematics Acquired . | . . . . . Robots Built . | . . . . . Authchips . | . . . . . Time . | . . . . . Total Robot Build Rating . | . . . . . Part Schematics Acquired . | . . . . . Parts Built . | . . . . . Authchips . | . . . . . Time . | . . . . . Total Part Build Rating . | . . . . . Part Studies Acquired 4 | . . 3 1 . Parts Repaired . | . . . . . Time . | . . . . . Parts Recycled . | . . . . . Recycled Matter . | . . . . . Retrieved Matter . | . . . . . Retrieved Components . | . . . . . Parts Scanalyzed . | . . . . . Part Schematics Acquired . | . . . . . Parts Damaged . | . . . . . Bothacking | -11 -10 -9 -8 -8 ------------ Run | Yrd Mat Mat Mat Sto Used RIF Installer . | . . . . . Robots Hacked . | . . . . . Non-combat . | . . . . . Combat . | . . . . . Robot Hacks Applied . | . . . . . Relay Couplers Released . | . . . . . Fabnet Peak Effective % . | . . . . . Robots Rewired . | . . . . . Allies Hacked . | . . . . . Hacks Repelled . | . . . . . Allies | -11 -10 -9 -8 -8 -------- Run | Yrd Mat Mat Mat Sto Total Allies 1 | . . 1 . . Largest Group 1 | . . 1 . . Highest-Rated Group 10 | . . 10 . . Highest-Rated Ally 10 | . . 10 . . Total Orders . | . . . . . Ally Attacks . | . . . . . Total Damage . | . . . . . Kills . | . . . . . Allies Corrupted . | . . . . . Allies Melted . | . . . . . Intel | -11 -10 -9 -8 -8 ------- Run | Yrd Mat Mat Mat Sto Active Infowar (turns) 2285 | 20 695 941 331 298 Terrain 59 | . . . 14 45 Seismic 1270 | 20 695 555 . . Machine Analysis 1145 | . . 516 331 298 Robot Analysis Total 4 | . 2 1 1 . Derelict Logs Recovered . | . . . . . Drone Launches . | . . . . . Drone Recoveries . | . . . . . Exploration | -11 -10 -9 -8 -8 ------------- Run | Yrd Mat Mat Mat Sto Turns Passed 2344 | 79 695 941 331 298 Spaces Moved 1425 | 40 373 396 304 312 Core 2 | 2 . . . . Treads 899 | 38 373 396 92 . Legs . | . . . . . Wheels . | . . . . . Hover . | . . . . . Flight 524 | . . . 212 312 Fastest Speed 26 | 50 160 160 26 26 Average Speed 111 | 154 160 160 68 26 Slowest Speed 172 | 160 160 160 172 26 Overloaded Moves . | . . . . . Propulsion Burnouts . | . . . . . Robots Hopped . | . . . . . Potential Cave-ins . | . . . . . Cave-ins Triggered . | . . . . . Exploration Rate (%) 41 | 4 58 50 31 64 Regions Visited 4 Branch Regions 1 Pre-discovered Areas . | . . . . . Known Exits Taken 1 | . . . 1 . Unknown Exits Taken 3 | 1 1 1 . . Scrap Searched . | . . . . . Spaces Dug 10 | . . . 4 6 Terrain Destroyed 22 | . . 6 4 12 Melee 10 | . . . 4 6 Projectile . | . . . . . AOE 12 | . . 6 . 6 Terrain Rammed . | . . . . . Walls Destroyed . | . . . . . Machines Disabled . | . . . . . Actions | -11 -10 -9 -8 -8 --------- Run | Yrd Mat Mat Mat Sto Total 1853 | 49 418 538 387 461 Wait 101 | . 10 33 26 32 Move 1421 | 39 372 395 303 312 Hop . | . . . . . Pick Up 13 | . 2 2 3 6 Fast Attach 47 | 7 1 11 18 10 Attach 3 | . . 2 . 1 Detach 1 | . . . 1 . Swap 6 | . 1 2 1 2 Drop 38 | . 2 10 15 11 Fire 166 | 3 30 83 13 37 Melee 27 | . . . 7 20 Ram . | . . . . . Kick . | . . . . . Crush . | . . . . . Escape Stasis 30 | . . . . 30 Rewire . | . . . . . Trap . | . . . . . Miscellaneous . | . . . . . Route ------- -11/Scrapyard -10/Materials (discovered 2 exits: *Mat / [*Min]) -9/Materials (discovered 3 exits: *Mat / Min x2) -8/Materials (discovered 3 exits: [*Fac] / *Sto x2) -8/Storage (discovered 1 exit: [*Fac]) History --------- Turn | Location | Event 18 | -11/Scrapyard | Discovered new exit (range 16) 80 | -11/Scrapyard | Entered Materials 81 | -10/Materials | Met a group of wandering Federalists 309 | -10/Materials | Build established: Mutant 640 | -10/Materials | Discovered new exit (range 14) 722 | -10/Materials | Discovered new exit (range 15) 775 | -10/Materials | Entered another Materials area 775 | -9/Materials | Evolved 2 slots: Utility x2 1221 | -9/Materials | Build established: Scavenger-Mutant 1558 | -9/Materials | Identified exit to Mines 1685 | -9/Materials | Discovered new exit (range 16) 1716 | -9/Materials | Entered another Materials area 1716 | -8/Materials | Evolved 2 slots: Propulsion x2 1904 | -8/Materials | Identified exit to Storage 2008 | -8/Materials | Central database locked down 2047 | -8/Materials | Discovered new exit (range 15) 2047 | -8/Materials | Entered Storage 2322 | -8/Storage | Discovered new exit (range 13) 2345 | -8/Storage | Self-destructed Last Messages --------------- 02318_ Terminal x2 02319_ W-25 Informer distress signal alerts nearby ally. 02320_ Connecting with Terminal... >>Alert(Check) Current Alert Level: 1-R >>Alert(Purge) Purged threat record, alert level lowered. 02322_ EXIT=FOUND 02330_ K-01 Serf collects debris. 02339_ Imp. Lightning Gun destroyed. 02340_ U-05 Engineer destroyed. 02340_ K-01 Serf destroyed. 02340_ Door malfunctions. 02340_ K-01 Serf destroyed. 02340_ ALERT: Construction progress impeded, dispatching reinforcements to local area. 02342_ Critical hit (Burn: +37). 02343_ Chain reaction triggered in Corrupted Lgt. Ion Engine. Map ----- +----------------------------------------------------+ | ????????????## ##????# #??????????????????? | | ?????+##/#### ###### """ #??????????????????? | | T + = """ #??????????????????? | | < ### ###### """ #??????????????????? | | ????????#####????# #??????????????????? | | ??????????""???????#######/######## #????????????? | | ??????????""???????# / + #???????????? | | """?T?????T"???????#[ !!# # """ #???????????? | | """???????""???????# + # """ #???????????? | | """???????""???????# # # """ #???????????? | | ???????????????????# # Y+ """?????????? | | ???????????????????#/ # # """ T"?????????? | | ???????????????????# # % # """ """?????????? | | ???????????????????# # # """ ???????????????? | | ???????????????????# # [# ????????????????? | | ???????????????????##### = ##########?????????? | | ???????????????????????## = ! +???????? | | ??????????????????##????#= Y % #########?????????? | | ???????????????#### ##### = ##########????????? | | ???????????????# / #???????? | | ???????????????# """ ] # """ #???????? | | ???????????????# """ #Y ]%!# [""""?????????? | | ???????????????# """ # !=# "[""]"?????????? | | ???????????????# # # "[""["?????????? | | ???????????????# """ ; # """"["??????##?? | | ???????????????# """ #@ Y # "" #?#### ## | | ???????????????# """ ###### # #?# | | ???????????????# #????# ###########?# """ | | ???????????????##########????# #???????????# """ | | ?????????????????????????????# #???????????# """ | | ?????????????????????????????# ####????????# | | ?????????????????????????????# #????????# """ | | ??????????????????############ #????????# """ | | ??????????????????# ## ########## """ | | ??????????????????# """" + + | | ??????????????????# " [" ######## ############# | | ??????????????????# =[" #??????# #???## """ | | ??????????????????# "|! #??????# #???# "T" "" | | ??????????????????# "=!" #??????# #????# "" | | ??????????????????# """"=#?######+#????# "" | | ??????????????????# #?# #????# ! | | ???????????##+##+######+####### #????# | | ???????????# =^% + ] #????# | | ???????????# [[ % %#### #????# | | ???????????# ########+###=#??# [ #????######## | | ?????????### # =[%=##*##?# ]#????######## | | ???????###T# # """"""[# ! #####/####????# | | ???????# [ + # "[[[* + !%= +????# | | ???????##### # "[[ ]" # ## #####??????# "" | | ???????????# + """"" ##+##??#??????????# "" | +----------------------------------------------------+ Best States ------------- Heat Dissipation 41 Energy Generation 15 Energy Capacity 280 Matter Stores 300 Matter Capacity 300 Sight Range 16 Terrain Scan Range 14 Terrain Scan Density 10 Additional Mass Support 6 Armor Coverage 150 Resistance: KI 20 Resistance: TH 20 Resistance: EX 20 Resistance: EM 20 Resistance: I 20 Resistance: S 20 Resistance: P 20 Evasion (%) 64 Recoil Reduction 4 Offensive Hacking 20 Item Schematics ----------------- None Robot Schematics ------------------ None Fabricated ------------ Nothing Repaired ---------- Nothing Studied --------- Ion Engine | -9/Materials | Hacked Particle Gun | -9/Materials | Hacked Lgt. Treads | -9/Materials | Hacked Lgt. Nuclear Core | -8/Materials | Hacked Alien Tech Used ----------------- None Achievements -------------- Ghost 'Em Challenges ------------ None Game ------ Seed HeatBoltMembrane Manual? 0 Play Time 00:22:14 Cumulative 115.9 hours Start 2025.12.03 @ 21:52:30 End 2025.12.03 @ 22:12:55 Sessions 1 Manual Loads 0 Difficulty Adventurer Special Mode None Game No. 87 Rogue 28 Adventurer 59 Explorer 0 Win Type - Total 4 Types 3/0/0/1/0/0/0/0/0/0 Lore% 60 Gallery% 66 Achievement% 49 Wizard Run 0 Options --------- Layout 1 ASCII 1 Keyboard 0 Movement Mouse Keybinds 0 Fullscreen 1 Font 24/Smallcaps Map View 50x35 Zoom Use 2% Tactical HUD 1 Map Filters NONE Filters NONE Steam 1 RUN: 7439b42d-c1ed-4565-8dc2-7cd429042850